Cogmind - Beta 13 @@@ ROGUE MODE // 2024.04.19 @ 15:00:59 Player: DGSTER Result: Self-destructed Performance ------------- Evolutions (9) 4500 Regions Visited (16) 3200 Robots Destroyed (157) 785 Value Destroyed (6725) 6725 Prototype IDs (15) 300 Alien Tech Used (0) 0 Bonus (1498) 1498 TOTAL SCORE: 17008 Bonus ------- High Alert Combat Kills 98 Follower Combat Kills 100 Entered DSFs 1000 Aligned with FarCom 300 Cogmind --------- Core Integrity 890/1600 Matter 290/300 Energy 8/100 System Corruption 27% Temperature Cool (-200) Movement Treading (305) Ox2 Location -1/Access Parts ------- > --- POWER (3) -------- (None) > --- PROPULSION (4) --- Biometal Medium Treads > --- UTILITY (15) ----- Advanced Cryofiber Web Huge Storage Unit > --- WEAPON (3) ------- (None) > --- INVENTORY (25) --- (None) Peak State ------------ > --- POWER ------------ Light Fission Core Micro Antimatter Reactor Light Quantum Reactor > --- PROPULSION ------- Biometal Medium Treads Biometal Medium Treads Biometal Medium Treads Biometal Medium Treads > --- UTILITY ---------- Advanced Cryofiber Web Advanced Heat Sink Advanced Coolant Injector Huge Storage Unit Improved Targeting Computer Advanced Targeting Computer Advanced Target Analyzer Advanced Particle Charger Advanced Transmission Jammer Thermal Shield Advanced Hardlight Generator Advanced Hacking Suite Advanced System Shield > --- WEAPON ----------- Nova Cannon Enhanced Nova Cannon Linear Accelerator > --- INVENTORY -------- Particle Reactor Micro Antimatter Reactor Micro Antimatter Reactor Armored Medium Treads Armored Medium Treads Armored Medium Treads Quantum Rifle Compact HERF Cannon Enhanced Nova Cannon Linear Accelerator Gamma Bomb Array Rocket Array Fusion Bomb Launcher [Rating: 158] Favorites ----------- Power Micro Antimatter Reactor Engine Improved Deuterium Engine Power Core Light Fission Core Reactor Micro Antimatter Reactor Propulsion Biometal Medium Treads Treads Biometal Medium Treads Leg Biometal Leg Hover Unit Improved Antigrav System Utility Improved Targeting Computer Device Advanced Heat Sink Storage Medium Storage Unit Processor Improved Targeting Computer Hackware Advanced Hacking Suite Protection Improved Medium Armor Plating Weapon Advanced Beam Cannon Energy Gun Dispersion Rifle Energy Cannon Advanced Beam Cannon Ballistic Gun KE Penetrator Ballistic Cannon Mini Assault Cannon Launcher Fusion Bomb Launcher Special Weapon Field Lobotomy Kit Build | -11 -10 -9 -9 -9 -8 -8 -7 -7 -6 -5 -4 -4 -3 -2 -2 -1 ------- Run | Yrd Mat Mat Min Exi Min Mat Fac Sto Fac Fac Fac DSF Res Res DSF Acc Slots Evolved 18 | . . 2 . . . 2 2 . 2 2 2 . 2 2 . 2 Power 2 | . . . . . . . . . . 1 . . . 1 . . Propulsion 2 | . . . . . . . 1 . 1 . . . . . . . Utility 13 | . . 2 . . . 2 1 . 1 1 2 . 1 1 . 2 Weapon 1 | . . . . . . . . . . . . . 1 . . . Parts Attached 209 | 6 5 4 1 2 1 15 13 32 6 19 3 14 19 6 18 45 Power 27 | 1 1 . 1 . . 1 . 3 . 1 1 2 3 2 4 7 Engine 9 | 1 1 . 1 . . 1 . 3 . 1 1 . . . . . Core 4 | . . . . . . . . . . . . 2 1 1 . . Reactor 14 | . . . . . . . . . . . . . 2 1 4 7 Propulsion 45 | 2 . . . . . 3 2 7 1 4 . 4 1 2 4 15 Treads 32 | 2 . . . . . 2 1 5 1 4 . 4 1 2 4 6 Leg 10 | . . . . . . 1 1 2 . . . . . . . 6 Wheel . | . . . . . . . . . . . . . . . . . Hover 3 | . . . . . . . . . . . . . . . . 3 Flight . | . . . . . . . . . . . . . . . . . Utility 62 | 1 2 2 . . . 6 2 12 5 4 1 3 10 2 3 9 Device 29 | . . 1 . . . 2 . 3 2 3 1 1 5 2 3 6 Storage 3 | 1 1 . . . . . . . . . . 1 . . . . Processor 11 | . . 1 . . . 2 . 2 1 . . 1 3 . . 1 Hackware 3 | . . . . . . . . . 1 . . . 2 . . . Protection 16 | . 1 . . . . 2 2 7 1 1 . . . . . 2 Artifact . | . . . . . . . . . . . . . . . . . Weapon 75 | 2 2 2 . 2 1 5 9 10 . 10 1 5 5 . 7 14 Energy Gun 13 | 2 1 . . . . . 2 . . 1 1 3 1 . . 2 Energy Cannon 25 | . . 2 . 1 . 3 4 2 . 1 . 1 . . 5 6 Ballistic Gun 6 | . . . . . . 1 1 1 . . . . . . . 3 Ballistic Cannon 12 | . . . . . . . . 6 . 5 . . . . 1 . Launcher 14 | . 1 . . . 1 1 2 1 . 1 . . 3 . 1 3 Special Weapon 5 | . . . . 1 . . . . . 2 . 1 1 . . . Impact Weapon . | . . . . . . . . . . . . . . . . . Slashing Weapon . | . . . . . . . . . . . . . . . . . Piercing Weapon . | . . . . . . . . . . . . . . . . . Special Melee Weapon . | . . . . . . . . . . . . . . . . . Unidentified Prototypes 6 | . . . . 1 . 2 . 3 . . . . . . . . Parts Lost 73 | . 1 . . . . 1 12 1 3 3 . . 7 . 12 33 Power 17 | . 1 . . . . . 1 . . 2 . . 1 . 3 9 Propulsion 12 | . . . . . . . 3 . . 1 . . 2 . 2 4 Utility 28 | . . . . . . 1 5 1 3 . . . 3 . 5 10 Weapon 16 | . . . . . . . 3 . . . . . 1 . 2 10 Highest Loss Streak 19 | . 1 . . . . 1 7 1 2 3 . . 2 . 5 19 To Critical Strikes 1 | . . . . . . . . . . . . . . . . 1 Average Slot Usage (%) 86 | . 89 96 99 97 100 93 78 94 89 92 75 85 85 85 77 54 Engine 5 | . 13 11 10 11 11 9 6 6 6 10 3 2 . . . . Reactor 2 | . . . . . . . . . . . . . 5 8 10 11 Treads 18 | . 28 22 22 22 22 18 15 22 26 22 15 19 19 16 12 1 Device 14 | . . 9 11 11 11 17 10 13 13 16 19 21 21 26 19 8 Storage 6 | . 14 11 11 11 11 9 7 7 6 5 5 5 4 4 4 4 Processor 11 | . . 9 11 11 11 5 7 14 15 17 15 17 18 13 13 4 Hackware 1 | . . . . . . . . . 1 . . . 4 8 5 3 Protection 7 | . 4 11 11 11 11 16 14 13 6 5 5 5 . . . 5 Energy Gun 3 | . 27 16 . . . . . . . . 3 7 5 4 . 1 Energy Cannon 6 | . . 4 22 19 19 17 13 1 . . 5 . . . 7 5 Ballistic Cannon 3 | . . . . . . . . 13 13 8 . . . . . . Naked Turns . | . . . . . . . . . . . . . . . . . Heaviest Build 198 | 12 20 25 29 29 29 38 40 47 44 67 53 135 135 131 174 198 Greatest Support 160 | 40 40 40 40 40 40 40 60 84 106 112 84 140 140 140 160 115 Greatest Overweight (x) 55 | . . . . . . 1 8 8 . 2 . 1 1 1 1 55 Average Overweight (x) . | . . . . . . . . . . . . . . . . 3 Largest Inventory Capacity 25 | 8 10 10 10 10 10 10 10 10 10 10 10 25 25 25 25 25 Average Capacity 15 | 7 9 10 10 10 10 10 10 10 10 10 10 17 25 25 25 25 Most Carried 25 | 5 10 10 8 10 9 10 10 10 10 10 10 15 25 20 17 16 Average Carried 10 | 1 6 7 7 7 8 8 7 9 9 7 8 11 19 17 9 9 Final Capacity 25 | 8 10 10 10 10 10 10 10 10 10 10 10 25 25 25 25 25 Final Carried 21 | 1 10 7 7 8 9 9 9 10 10 10 8 15 21 17 12 . Class Distribution -------------------- 61% | Mutant 21% | Scavenger-Mutant 6% | Hacker-Mutant 3% | Tank 3% | Skirmisher Dominant Class ---------------- Mutant | -10/Materials Mutant | -9/Materials Mutant | -9/Mines Mutant | -9/Exiles Skirmisher | -8/Mines Scavenger-Mutant | -8/Materials Scavenger-Mutant | -7/Factory Mutant | -7/Storage Mutant | -6/Factory Mutant | -5/Factory Mutant | -4/Factory Mutant | -4/DSF Mutant | -3/Research Hacker-Mutant | -2/Research Scavenger-Mutant | -2/DSF Scavenger-Mutant | -1/Access Resources | -11 -10 -9 -9 -9 -8 -8 -7 -7 -6 -5 -4 -4 -3 -2 -2 -1 ----------- Run | Yrd Mat Mat Min Exi Min Mat Fac Sto Fac Fac Fac DSF Res Res DSF Acc Matter Collected 4058 | 260 66 20 20 . 32 173 253 801 61 232 53 417 298 20 399 953 Remotely 354 | . . . . . . 173 181 . . . . . . . . . Salvage Created 5984 | 106 341 79 195 . 9 627 460 543 . 210 . 373 1140 26 559 1316 Parts 295 | 1 19 3 8 . 3 30 29 20 . 16 . 23 58 3 20 62 Haulers Intercepted 9 | . 2 . . . . 4 . 2 . . . . 1 . . . Recyclers Shooed 2 | . . . . . . . . . . 1 . . 1 . . . Parts Field Recycled . | . . . . . . . . . . . . . . . . . Retrieved Matter . | . . . . . . . . . . . . . . . . . Parts Self-Destructed . | . . . . . . . . . . . . . . . . . Prevented . | . . . . . . . . . . . . . . . . . Kills | -11 -10 -9 -9 -9 -8 -8 -7 -7 -6 -5 -4 -4 -3 -2 -2 -1 ------- Run | Yrd Mat Mat Min Exi Min Mat Fac Sto Fac Fac Fac DSF Res Res DSF Acc Combat Hostiles Destroyed 124 | . 5 2 3 . 4 10 11 14 1 13 . 11 21 . 8 21 Guns 32 | . 1 2 . . . . 1 . . . . 10 13 . . 5 Cannons 45 | . . . 2 . . 9 5 14 1 6 . 1 . . 3 4 AOE 35 | . 3 . . . 4 . 4 . . 6 . . 8 . 4 6 Classes Destroyed 15 | 2 5 . . . . 1 5 1 . . . . . . . 1 Worker 5 | . . . . . . . 1 . . 1 . . 2 1 . . Builder 9 | . 2 . . . . 1 1 1 . . . . 1 1 . 2 Tunneler 3 | 1 . . . . . . 1 . . . . . . . . 1 Hauler 9 | . 2 . . . . 4 . 2 . . . . 1 . . . Recycler 5 | 1 1 . . . . 1 1 . . . . . 1 . . . Watcher 2 | . 1 . . . . 1 . . . . . . . . . . Swarmer 40 | . 3 . . . 4 4 3 . . 8 . 9 4 . . 5 Grunt 33 | . 2 2 3 . . 3 3 6 . 2 . 1 5 . . 6 Brawler 1 | . . . . . . . . . . . . . . . . 1 Duelist 2 | . . . . . . . . 1 . . . . . . . 1 Sentry 10 | . . . . . . 3 . 6 . . . . . . 1 . Specialist 6 | . . . . . . . 2 . . . . 1 . . 3 . Hunter 7 | . . . . . . . 1 . 1 . . . 2 . . 3 Programmer 23 | . . . . . . . 1 1 . 2 . . 10 . 4 5 Heavy 2 | . . . . . . . 1 . . 1 . . . . . . Best Kill Streak 9 | 1 5 2 3 . 4 4 7 4 1 7 . 9 5 2 3 5 Combat Bots Only 9 | . 3 2 3 . 4 4 5 4 1 7 . 9 4 . 3 4 Max Kills in Single Turn 3 | 1 3 1 1 . 2 1 2 1 1 3 . 2 2 1 2 3 Gunslinging 1 | . . . . . . . . . . . . 1 1 . . . Exploded 3 | . 2 . . . 2 . 1 . . 3 . . 2 . 2 3 Melee . | . . . . . . . . . . . . . . . . . Uniques/NPCs Destroyed . | . . . . . . . . . . . . . . . . . Combat | -11 -10 -9 -9 -9 -8 -8 -7 -7 -6 -5 -4 -4 -3 -2 -2 -1 -------- Run | Yrd Mat Mat Min Exi Min Mat Fac Sto Fac Fac Fac DSF Res Res DSF Acc Hostile Shots Fired 1027 | . 35 9 8 . 6 50 101 173 45 85 . 33 128 . 106 248 Missed 285 | . 12 1 2 . . 13 23 60 11 26 . 11 40 . 29 57 Damage Taken 16024 | . 264 87 71 . 42 418 1642 924 491 1315 . 378 1900 . 3418 5074 Core 2893 | . 21 12 11 . . 91 272 98 67 140 . 28 344 . 1099 710 Absorbed by Shields 32 | . . . . . . . . . . . . . . . 32 . Ignored by Resistances 116 | . . . . . . . 18 . . . . . 32 . 66 . Core Remaining (%) 78 | 100 91 . . . 94 83 . 47 92 86 . 97 73 . 24 . Volleys Fired 382 | 3 25 9 7 . 2 27 38 42 13 27 . 13 72 . 36 68 Largest 3 | 2 2 2 1 . 1 2 2 2 2 2 . 2 2 . 3 3 Hottest 306 | 100 100 136 68 . 30 136 136 136 96 155 . 176 176 . 306 279 Shots Fired 623 | 6 48 18 7 . 2 50 64 84 26 41 . 23 85 . 62 107 Gun 221 | 6 46 14 . . . . 6 . . 4 . 20 74 . 3 48 Cannon 339 | . . 4 7 . . 50 44 84 26 31 . 2 . . 46 45 Launcher 58 | . 2 . . . 2 . 14 . . 3 . . 10 . 13 14 Special 5 | . . . . . . . . . . 3 . 1 1 . . . Kinetic 174 | . . . . . . . 6 78 26 25 . . . . 3 36 Thermal 348 | 6 46 18 7 . . 50 44 6 . 10 . 22 74 . 34 31 Explosive 50 | . 2 . . . 2 . 14 . . 3 . . 9 . 13 7 Electromagnetic 46 | . . . . . . . . . . . . . 1 . 12 33 Robot Hit Streak 41 | 3 16 4 2 . 2 15 17 23 4 10 . 15 36 . 41 22 Robot Miss Streak 4 | 1 3 2 1 . 1 3 2 2 3 3 . 2 1 . 2 4 Penetration Max . | . . . . . . . . . . . . . . . . . Secondary Targets 3 | . . . . . . . . . . . . 2 1 . . . Max Gunslinging Chain 1 | . . . . . . . . . . . . 1 1 . . . Capacitor 63 | . . . . . . . . . . . . . 58 . 5 . Shots Hit Robots 472 | 4 35 11 5 . 1 33 43 66 17 31 . 21 74 . 55 76 Core Hits 282 | 2 17 4 4 . 2 18 29 30 3 29 . 13 44 1 23 63 Critical Kills 7 | . . . 1 . . . . . . . . 1 4 . 1 . Critical Parts Destroyed 7 | . . . . . . . 1 . . . . 1 4 . . 1 Critical Strikes 34 | . 2 1 1 . . . 1 9 2 3 . 2 8 . 4 1 Burn 3 | . 2 1 . . . . . . . . . . . . . . Meltdown 2 | . . . 1 . . . . . . . . . . . 1 . Destroy 12 | . . . . . . . 1 . . . . 2 8 . . 1 Blast 15 | . . . . . . . . 9 2 3 . . . . 1 . Corrupt 2 | . . . . . . . . . . . . . . . 2 . Melee Attacks . | . . . . . . . . . . . . . . . . . Impact . | . . . . . . . . . . . . . . . . . Slashing . | . . . . . . . . . . . . . . . . . Piercing . | . . . . . . . . . . . . . . . . . Sneak Attacks . | . . . . . . . . . . . . . . . . . Combat Hostiles . | . . . . . . . . . . . . . . . . . Follow-up Attacks . | . . . . . . . . . . . . . . . . . Damage Inflicted 19535 | 56 680 143 105 . 355 705 1400 1811 363 1411 . 527 4150 44 3475 4310 Guns 4639 | 50 407 122 . . . . 85 . . 140 . 477 2257 . 106 995 Cannons 7401 | . . 21 103 . . 674 681 1768 349 648 . 50 . . 1789 1318 Explosions 7222 | . 273 . . . 355 . 634 . . 580 . . 1810 . 1580 1990 Melee . | . . . . . . . . . . . . . . . . . Ramming 273 | 6 . . 2 . . 31 . 43 14 43 . . 83 44 . 7 Kinetic 3421 | . . . . . . . 85 1644 349 524 . . . . 128 691 Thermal 7726 | 50 407 143 103 . . 674 681 124 . 264 . 527 2257 . 1477 1019 Explosive 6602 | . 273 . . . 355 . 634 . . 580 . . 1789 . 1580 1391 Electromagnetic 1513 | . . . . . . . . . . . . . 21 . 290 1202 Impact . | . . . . . . . . . . . . . . . . . Slashing . | . . . . . . . . . . . . . . . . . Piercing . | . . . . . . . . . . . . . . . . . Highest Corruption 27 | . . . . . . . 2 2 2 4 . . 12 . 6 27 Average Corruption 4 | . . . . . . . 1 2 2 2 . . 5 . 5 8 Corruption Purged . | . . . . . . . . . . . . . . . . . Corruption Blocked . | . . . . . . . . . . . . . . . . . Effects 122 | . . . . . . . 6 18 3 13 . . 35 . 9 38 Message Errors 29 | . . . . . . . 2 7 1 1 . . 7 . 3 8 Matter Fused 31 | . . . . . . . 1 4 . 6 . . 9 . 3 8 Heat Flow Errors 12 | . . . . . . . . . . 2 . . 5 . . 5 Energy Discharges 13 | . . . . . . . . 1 2 1 . . 3 . 2 4 Parts Rejected 1 | . . . . . . . 1 . . . . . . . . . Parts Fused 3 | . . . . . . . . 1 . . . . 1 . . 1 Data Loss (minor) 11 | . . . . . . . 1 1 . 3 . . 3 . . 3 Data Loss (major) 4 | . . . . . . . . 2 . . . . 2 . . . Misfires 6 | . . . . . . . . . . . . . 5 . . 1 Alerts 6 | . . . . . . . 1 2 . . . . . . 1 2 Misdirections 3 | . . . . . . . . . . . . . . . . 3 Weapon Failures 3 | . . . . . . . . . . . . . . . . 3 Overload Shots . | . . . . . . . . . . . . . . . . . Overflow Damage 411 | . 5 . . . 40 1 25 1 . 36 . . 15 . 148 140 Projectiles 197 | . . . . . . 1 . 1 . 34 . . . . 59 102 Explosions 214 | . 5 . . . 40 . 25 . . 2 . . 15 . 89 38 Melee . | . . . . . . . . . . . . . . . . . Knockbacks 17 | . . . . . . . . 7 3 6 . . . . 1 . Impact 1 | . . . . . . . . . 1 . . . . . . . Kinetic 16 | . . . . . . . . 7 2 6 . . . . 1 . Secondary . | . . . . . . . . . . . . . . . . . Self-Inflicted Damage 885 | . . . . . . . 52 . . 41 . . . . 334 458 Shots 44 | . . . . . . . 3 . . 2 . . . . 6 33 Rammed 27 | . 1 . 1 . . 5 . 3 4 6 . . 5 1 . 1 Targets Rammed 37 | 1 1 . 1 . . 8 . 4 4 7 . . 6 2 . 3 Kicked 2 | . . . . . . . . . . . . . . . . 2 Crushed 8 | 1 . . . . . 3 . 1 . 1 . . 1 1 . . Highest Temperature 6315 | 99 248 321 68 . . 382 418 183 32 245 . 80 216 . 6315 612 Average Temperature 311 | 52 102 141 36 . . 125 172 49 15 50 . 34 70 . 1118 241 Received Heat Transfer 1647 | . 99 48 39 . . 135 342 261 . 144 . 42 60 . 99 378 Effects 67 | . . . . . . 7 7 . . . . . . . 41 12 Shutdowns 16 | . . . . . . 1 1 . . . . . . . 14 . Energy Bleed 9 | . . . . . . 3 . . . . . . . . 4 2 Interference 16 | . . . . . . 3 5 . . . . . . . 6 2 Matter Decay 5 | . . . . . . . . . . . . . . . 4 1 Short Circuit 7 | . . . . . . . . . . . . . . . 4 3 Damage (minor) 7 | . . . . . . . 1 . . . . . . . 3 3 Damage (major) 4 | . . . . . . . . . . . . . . . 4 . Damage (core) 3 | . . . . . . . . . . . . . . . 2 1 Siege Activations . | . . . . . . . . . . . . . . . . . Robots Corrupted 6 | . . . . . . . . . . . . . . . . 6 Combat Hostiles 6 | . . . . . . . . . . . . . . . . 6 Parts Fried 10 | . . . . . . . . . . . . . . . . 10 Impact Corruptions . | . . . . . . . . . . . . . . . . . Robots Melted 5 | . 1 . 1 . . 1 . . . 1 . . . . 1 . Combat Hostiles 5 | . 1 . 1 . . 1 . . . 1 . . . . 1 . Parts Melted 28 | 1 9 2 2 . . 4 1 . . 1 . 1 4 . 3 . Heat Transferred 10414 | 148 1369 481 185 . . 1221 1184 222 . 398 . 766 2405 . 1184 851 Parts Sabotaged . | . . . . . . . . . . . . . . . . . Parts Stolen . | . . . . . . . . . . . . . . . . . Parts Stripped . | . . . . . . . . . . . . . . . . . Power Chain Reactions . | . . . . . . . . . . . . . . . . . Alert | -11 -10 -9 -9 -9 -8 -8 -7 -7 -6 -5 -4 -4 -3 -2 -2 -1 ------- Run | Yrd Mat Mat Min Exi Min Mat Fac Sto Fac Fac Fac DSF Res Res DSF Acc Peak Influence 551 | 10 149 118 115 . 104 270 272 284 51 170 83 354 434 191 551 399 Initial 330 | . 6 62 45 . . 40 42 114 37 . 83 58 198 191 57 330 Average 134 | 2 62 87 69 . 9 121 99 136 19 31 83 190 198 107 360 231 Maximum Alert Level 2 | . . . . . . 1 1 1 . . . 1 2 . 2 1 Low Security (%) 76 | 100 100 100 100 . 100 82 86 72 100 100 100 69 62 100 38 36 Level 1 20 | . . . . . . 17 13 27 . . . 30 35 . 7 63 Level 2 2 | . . . . . . . . . . . . . 1 . 54 . Level 3 . | . . . . . . . . . . . . . . . . . Level 4 . | . . . . . . . . . . . . . . . . . Level 5 . | . . . . . . . . . . . . . . . . . High Security . | . . . . . . . . . . . . . . . . . Max Security . | . . . . . . . . . . . . . . . . . Sterilizations 2 | . . . . . . . . . . . . 1 . . 1 . Squads Dispatched 33 | . . . . . . . 5 4 2 4 . . 8 . 1 9 Investigation 6 | . . . . . . . 1 1 1 1 . . 1 . . 1 Extermination 13 | . . . . . . . 1 1 1 2 . . 5 . . 3 Reinforcement 10 | . . . . . . . 3 . . 1 . . 2 . 1 3 Assault 2 | . . . . . . . . 2 . . . . . . . . Garrison 2 | . . . . . . . . . . . . . . . . 2 Intercept . | . . . . . . . . . . . . . . . . . Searches Triggered . | . . . . . . . . . . . . . . . . . Construction Impeded 3 | . . . . . . . 1 . . . . . 1 . . 1 Haulers Reinforced 1 | . . . . . . . . . . . . . . . . 1 Active Scanning Responses . | . . . . . . . . . . . . . . . . . Cargo Convoy Interrupts . | . . . . . . . . . . . . . . . . . Stealth | -11 -10 -9 -9 -9 -8 -8 -7 -7 -6 -5 -4 -4 -3 -2 -2 -1 --------- Run | Yrd Mat Mat Min Exi Min Mat Fac Sto Fac Fac Fac DSF Res Res DSF Acc Distress Signals 11 | . 1 . . . . 2 1 1 . 1 . . 5 . . . Communications Jammed 5 | . . . . . . . . . . . . . . . 5 . Distress Signals . | . . . . . . . . . . . . . . . . . Times Spotted 199 | . 9 4 3 . 4 18 19 21 1 16 . 14 39 . 10 41 Peak Tracking Total 8 | . 4 2 3 . 4 4 5 4 1 5 . 5 7 . 4 8 Tactical Retreats 16 | . . . . . . . 1 4 . . . 1 4 . 1 5 Traps | -11 -10 -9 -9 -9 -8 -8 -7 -7 -6 -5 -4 -4 -3 -2 -2 -1 ------- Run | Yrd Mat Mat Min Exi Min Mat Fac Sto Fac Fac Fac DSF Res Res DSF Acc Traps Triggered 15 | . . . . . . . 1 5 1 2 . 2 1 1 . 2 Indirectly 1 | . . . . . . . . . . . . . . . . 1 Trap Hack Attempts . | . . . . . . . . . . . . . . . . . Triggered . | . . . . . . . . . . . . . . . . . Disarmed . | . . . . . . . . . . . . . . . . . Reprogrammed . | . . . . . . . . . . . . . . . . . Reused . | . . . . . . . . . . . . . . . . . Traps Extracted . | . . . . . . . . . . . . . . . . . Installed . | . . . . . . . . . . . . . . . . . Triggered . | . . . . . . . . . . . . . . . . . Machines | -11 -10 -9 -9 -9 -8 -8 -7 -7 -6 -5 -4 -4 -3 -2 -2 -1 ---------- Run | Yrd Mat Mat Min Exi Min Mat Fac Sto Fac Fac Fac DSF Res Res DSF Acc Machines Disabled 8 | . . . . . . 1 2 1 . 1 . . 3 . . . Max in Single Turn 1 | . . . . . . 1 1 1 . . . . 1 . . . Machines Repaired . | . . . . . . . . . . . . . . . . . Machines Dismantled . | . . . . . . . . . . . . . . . . . Machines Sabotaged . | . . . . . . . . . . . . . . . . . Overloaded Fab Kills . | . . . . . . . . . . . . . . . . . Hacking | -11 -10 -9 -9 -9 -8 -8 -7 -7 -6 -5 -4 -4 -3 -2 -2 -1 --------- Run | Yrd Mat Mat Min Exi Min Mat Fac Sto Fac Fac Fac DSF Res Res DSF Acc Machines Accessed 59 | . 5 1 . 4 . 9 4 10 5 8 1 . 9 2 . 1 Terminals 39 | . 4 1 . . . 7 3 10 2 3 1 . 5 2 . 1 Fabricators 1 | . . . . . . . . . . 1 . . . . . . Repair Stations 2 | . . . . . . . . . . 2 . . . . . . Recycling Units 7 | . 1 . . . . 2 . . 2 1 . . 1 . . . Scanalyzers 2 | . . . . . . . 1 . . . . . 1 . . . Garrison Access 4 | . . . . . . . . . 1 1 . . 2 . . . Total Hacks 196 | . 12 5 . 49 . 26 19 18 11 20 2 . 25 7 . 2 Successful 114 | . 5 1 . 49 . 10 15 8 3 6 1 . 9 6 . 1 Failed 82 | . 7 4 . . . 16 4 10 8 14 1 . 16 1 . 1 Catastrophic 20 | . 1 2 . . . 3 . 5 1 4 . . 4 . . . Database Lockouts . | . . . . . . . . . . . . . . . . . Manual 35 | . 3 5 . 2 . 9 2 5 3 3 . . . 3 . . Terminals 95 | . 11 5 . . . 22 5 18 4 6 2 . 13 7 . 2 Fabricators 6 | . . . . . . . . . . 6 . . . . . . Repair Stations 5 | . . . . . . . . . . 5 . . . . . . Recycling Units 16 | . 1 . . . . 4 . . 5 2 . . 4 . . . Scanalyzers 18 | . . . . . . . 14 . . . . . 4 . . . Garrison Access 7 | . . . . . . . . . 2 1 . . 4 . . . Terminal Hacks 88 | . 4 1 . 49 . 7 3 8 . 2 1 . 6 6 . 1 Record 55 | . . . . 49 . . 1 1 . . . . 2 1 . 1 Prototype ID Bank 4 | . 2 . . . . 2 . . . . . . . . . . Open Door 4 | . . . . . . . . 4 . . . . . . . . Open DSF 5 | . . . . . . . . . . 2 1 . 1 1 . . Level Access Points 1 | . . . . . . . . . . . . . . 1 . . Emergency Access Points 1 | . . . . . . 1 . . . . . . . . . . Terminal Index 1 | . . . . . . . . 1 . . . . . . . . Alert Level 10 | . 1 1 . . . 2 2 1 . . . . 2 1 . . Unreport Threat 3 | . . . . . . . . 1 . . . . 1 1 . . Dispatch Records 1 | . . . . . . 1 . . . . . . . . . . Hauler Manifests 2 | . 1 . . . . . . . . . . . . 1 . . Zone Layout 1 | . . . . . . 1 . . . . . . . . . . Fabricator Hacks 1 | . . . . . . . . . . 1 . . . . . . Build 1 | . . . . . . . . . . 1 . . . . . . Repair Station Hacks 2 | . . . . . . . . . . 2 . . . . . . Scan Component 2 | . . . . . . . . . . 2 . . . . . . Recycling Unit Hacks 8 | . 1 . . . . 2 . . 3 1 . . 1 . . . Report Inventory 7 | . 1 . . . . 2 . . 2 1 . . 1 . . . Retrieve Components 1 | . . . . . . . . . 1 . . . . . . . Scanalyzer 14 | . . . . . . . 12 . . . . . 2 . . . Insert Component 7 | . . . . . . . 6 . . . . . 1 . . . Analyze 7 | . . . . . . . 6 . . . . . 1 . . . Garrison Access Hacks . | . . . . . . . . . . . . . . . . . Unauthorized Hacks 1 | . . . . . . 1 . . . . . . . . . . Terminals . | . . . . . . . . . . . . . . . . . Fabricators . | . . . . . . . . . . . . . . . . . Repair Stations . | . . . . . . . . . . . . . . . . . Recycling Units 1 | . . . . . . 1 . . . . . . . . . . Reject 1 | . . . . . . 1 . . . . . . . . . . Scanalyzers . | . . . . . . . . . . . . . . . . . Garrison Access . | . . . . . . . . . . . . . . . . . Data Cores Recovered . | . . . . . . . . . . . . . . . . . Used . | . . . . . . . . . . . . . . . . . Hacking Detections 46 | . 4 1 . . . 8 4 9 4 6 1 . 8 . . 1 Full Trace Events 6 | . 1 . . . . 1 . 1 1 1 . . 1 . . . Feedback Events 3 | . . . . . . . . . 1 1 . . 1 . . . Corruption 2 | . . . . . . . . . . 1 . . 1 . . . Hackware Fried 1 | . . . . . . . . . 1 . . . . . . . Feedback Blocked . | . . . . . . . . . . . . . . . . . Robot Schematics Acquired . | . . . . . . . . . . . . . . . . . Robots Built 1 | . . . . . . . . . . 1 . . . . . . Authchips . | . . . . . . . . . . . . . . . . . Time 76 | . . . . . . . . . . 76 . . . . . . Total Robot Build Rating 5 | . . . . . . . . . . 5 . . . . . . Part Schematics Acquired 5 | . . . . . . . 4 . . . . . 1 . . . Parts Built . | . . . . . . . . . . . . . . . . . Authchips . | . . . . . . . . . . . . . . . . . Time . | . . . . . . . . . . . . . . . . . Total Part Build Rating . | . . . . . . . . . . . . . . . . . Parts Repaired . | . . . . . . . . . . . . . . . . . Time . | . . . . . . . . . . . . . . . . . Parts Recycled . | . . . . . . . . . . . . . . . . . Recycled Matter . | . . . . . . . . . . . . . . . . . Retrieved Matter . | . . . . . . . . . . . . . . . . . Retrieved Components 1 | . . . . . . . . . 1 . . . . . . . Parts Scanalyzed 6 | . . . . . . . 5 . . . . . 1 . . . Part Schematics Acquired 5 | . . . . . . . 4 . . . . . 1 . . . Parts Damaged . | . . . . . . . . . . . . . . . . . Bothacking | -11 -10 -9 -9 -9 -8 -8 -7 -7 -6 -5 -4 -4 -3 -2 -2 -1 ------------ Run | Yrd Mat Mat Min Exi Min Mat Fac Sto Fac Fac Fac DSF Res Res DSF Acc Used RIF Installer . | . . . . . . . . . . . . . . . . . Robots Hacked . | . . . . . . . . . . . . . . . . . Non-combat . | . . . . . . . . . . . . . . . . . Combat . | . . . . . . . . . . . . . . . . . Robot Hacks Applied . | . . . . . . . . . . . . . . . . . Relay Couplers Released . | . . . . . . . . . . . . . . . . . Fabnet Peak Effective % . | . . . . . . . . . . . . . . . . . Robots Rewired . | . . . . . . . . . . . . . . . . . Allies Hacked . | . . . . . . . . . . . . . . . . . Hacks Repelled . | . . . . . . . . . . . . . . . . . Allies | -11 -10 -9 -9 -9 -8 -8 -7 -7 -6 -5 -4 -4 -3 -2 -2 -1 -------- Run | Yrd Mat Mat Min Exi Min Mat Fac Sto Fac Fac Fac DSF Res Res DSF Acc Total Allies 11 | . . . . . . . . 2 . 4 . 1 4 . . . Largest Group 4 | . . . . . . . . 2 . 3 . 1 4 . . . Highest-Rated Group 275 | . . . . . . . . 62 . 131 . 137 275 . . . Highest-Rated Ally 137 | . . . . . . . . 31 . 85 . 137 137 . . . Total Orders 5 | . . . . . . . . . . 3 . . 2 . . . ROAM 3 | . . . . . . . . . . 2 . . 1 . . . FOLLOW 1 | . . . . . . . . . . . . . 1 . . . PICKUP 1 | . . . . . . . . . . 1 . . . . . . Ally Attacks 42 | . . . . . . . . 7 . 9 . 6 20 . . . Total Damage 2251 | . . . . . . . . 144 . 357 . 337 1413 . . . Kills 10 | . . . . . . . . . . 1 . 2 7 . . . Allies Corrupted . | . . . . . . . . . . . . . . . . . Allies Melted 1 | . . . . . . . . . . . . . 1 . . . Field Lobotomies 5 | . . . . . . . . . . 3 . 1 1 . . . Intel | -11 -10 -9 -9 -9 -8 -8 -7 -7 -6 -5 -4 -4 -3 -2 -2 -1 ------- Run | Yrd Mat Mat Min Exi Min Mat Fac Sto Fac Fac Fac DSF Res Res DSF Acc Robot Analysis Total . | . . . . . . . . . . . . . . . . . Derelict Logs Recovered 1 | . . . 1 . . . . . . . . . . . . . Drone Launches . | . . . . . . . . . . . . . . . . . Drone Recoveries . | . . . . . . . . . . . . . . . . . Exploration | -11 -10 -9 -9 -9 -8 -8 -7 -7 -6 -5 -4 -4 -3 -2 -2 -1 ------------- Run | Yrd Mat Mat Min Exi Min Mat Fac Sto Fac Fac Fac DSF Res Res DSF Acc Turns Passed 12632 | 69 728 308 487 972 382 1162 648 1410 822 944 75 458 1779 393 488 1507 Spaces Moved 6263 | 44 387 160 290 603 230 591 307 658 454 503 40 246 954 257 196 343 Core 48 | 22 . . . . . . 10 2 . . . . . . . 14 Treads 5942 | 22 387 160 290 603 230 591 291 639 454 503 40 246 954 257 196 79 Legs 261 | . . . . . . . 6 17 . . . . . . . 238 Wheels . | . . . . . . . . . . . . . . . . . Hover 12 | . . . . . . . . . . . . . . . . 12 Flight . | . . . . . . . . . . . . . . . . . Fastest Speed 50 | 50 160 160 160 160 160 160 160 120 156 155 160 145 145 145 157 110 Average Speed 166 | 105 160 160 160 160 160 165 168 159 156 159 160 147 145 145 185 324 Slowest Speed 2800 | 160 160 160 160 160 160 240 450 450 156 320 160 225 225 225 250 2800 Overloaded Moves . | . . . . . . . . . . . . . . . . . Propulsion Burnouts . | . . . . . . . . . . . . . . . . . Robots Hopped . | . . . . . . . . . . . . . . . . . Cave-ins Triggered . | . . . . . . . . . . . . . . . . . Exploration Rate (%) 40 | 3 54 19 67 93 76 39 9 72 10 14 1 97 27 9 87 7 Regions Visited 16 Branch Regions 4 Pre-discovered Areas 2 | . . . 1 1 . . . . . . . . . . . . Known Exits Taken 6 | . . 1 1 1 1 . . . . . 1 . . 1 . . Unknown Exits Taken 8 | 1 1 . . . . 1 1 1 1 1 . . 1 . . . Scrap Searched 2 | . . . 1 . 1 . . . . . . . . . . . Spaces Dug . | . . . . . . . . . . . . . . . . . Terrain Destroyed 506 | . 11 . . . 23 . 71 4 6 17 . . 68 . 181 125 Melee . | . . . . . . . . . . . . . . . . . Projectile 26 | . . . . . . . 1 4 6 3 . . 3 . 2 7 AOE 480 | . 11 . . . 23 . 70 . . 14 . . 65 . 179 118 Terrain Rammed . | . . . . . . . . . . . . . . . . . Walls Destroyed . | . . . . . . . . . . . . . . . . . Machines Disabled . | . . . . . . . . . . . . . . . . . Actions | -11 -10 -9 -9 -9 -8 -8 -7 -7 -6 -5 -4 -4 -3 -2 -2 -1 --------- Run | Yrd Mat Mat Min Exi Min Mat Fac Sto Fac Fac Fac DSF Res Res DSF Acc Total 7994 | 60 450 197 306 612 243 728 382 958 547 615 52 331 1328 277 280 628 Wait 732 | . 12 14 4 . 9 53 1 164 62 32 9 13 237 3 5 114 Move 6247 | 43 386 159 289 602 229 590 306 657 453 502 39 245 953 256 195 343 Hop . | . . . . . . . . . . . . . . . . . Pick Up 218 | 7 15 5 1 4 1 17 13 38 6 13 . 27 24 5 13 29 Fast Attach . | . . . . . . . . . . . . . . . . . Attach 207 | 6 5 4 1 2 1 14 13 32 6 19 3 14 19 6 18 44 Detach 43 | . 2 . . 1 1 4 3 3 1 9 1 1 7 . 3 7 Swap 2 | . . . . . . 1 . . . . . . . . . 1 Drop 123 | . 4 6 1 3 . 14 8 18 2 6 . 17 10 5 10 19 Fire 382 | 3 25 9 7 . 2 27 38 42 13 27 . 13 72 . 36 68 Melee . | . . . . . . . . . . . . . . . . . Ram 1 | . . . . . . . . . . . . . . . . 1 Kick 2 | . . . . . . . . . . . . . . . . 2 Crush 34 | 1 1 . 1 . . 8 . 4 4 7 . . 6 2 . . Escape Stasis . | . . . . . . . . . . . . . . . . . Rewire 3 | . . . 2 . . . . . . . . 1 . . . . Trap . | . . . . . . . . . . . . . . . . . Miscellaneous . | . . . . . . . . . . . . . . . . . Route ------- -11/Scrapyard -10/Materials (discovered 2 exits: *Mat x2) -9/Materials -9/Mines (discovered 3 exits: *Mat x2 / *Exi) -9/Exiles (discovered 2 exits: *Min x2) -8/Mines -8/Materials -7/Factory -7/Storage -6/Factory -5/Factory -4/Factory -4/DSF -3/Research -2/Research (discovered 4 exits: Acc x3 / DSF) -2/DSF -1/Access History --------- Turn | Location | Event 5 | -11/Scrapyard | Discovered new exit (range 15) 70 | -11/Scrapyard | Entered Materials 156 | -10/Materials | Discovered new exit (range 11) 308 | -10/Materials | Build established: Mutant 561 | -10/Materials | Discovered new exit (range 10) 798 | -10/Materials | Entered another Materials area 798 | -9/Materials | Evolved 2 slots: Utility x2 1061 | -9/Materials | Discovered new exit (range 13) 1080 | -9/Materials | Identified exit to Mines 1106 | -9/Materials | Entered Mines 1217 | -9/Mines | Found a hidden stash of uninstalled traps 1265 | -9/Mines | Discovered new exit (range 7) 1293 | -9/Mines | Identified exit to Materials 1468 | -9/Mines | Discovered exit to Materials (range 9) 1571 | -9/Mines | Learned location of Storage (-7) 1585 | -9/Mines | Deemed a non-threat by the Exiles lab entrance 1585 | -9/Mines | Discovered new exit (range 5) 1590 | -9/Mines | Identified exit to Exiles 1593 | -9/Mines | Entered Exiles 1614 | -9/Exiles | Discovered new exit (range 15) 1638 | -9/Exiles | Met 8R-AWN 1661 | -9/Exiles | Met EX-HEX 1728 | -9/Exiles | Met EX-DEC 1739 | -9/Exiles | Learned location of Zion (-7) 1829 | -9/Exiles | Discovered new exit (range 10) 1957 | -9/Exiles | Met EX-BIN 1984 | -9/Exiles | Aligned with FarCom system 1985 | -9/Exiles | Given EX-Vault access code 2041 | -9/Exiles | Opened EX-Vault 2049 | -9/Exiles | Found Prototype Ballistic Cannon 2054 | -9/Exiles | Found Prototype Special Weapon 2056 | -9/Exiles | Identified Field Lobotomy Kit 2135 | -9/Exiles | Warned to stay clear of 0b10 Research branches 2229 | -9/Exiles | Visited The Gauntlet 2563 | -9/Exiles | Identified exit to Mines 2565 | -9/Exiles | Left Exiles lab with Field Lobotomy Kit 2565 | -9/Exiles | Entered Mines 2851 | -8/Mines | Build established: Skirmisher 2928 | -8/Mines | Discovered exit to Materials (range 13) 2947 | -8/Mines | Entered Materials 2947 | -8/Materials | Evolved 2 slots: Utility x2 3365 | -8/Materials | Build established: Scavenger-Mutant 4093 | -8/Materials | Discovered new exit (range 11) 4109 | -8/Materials | Entered Factory 4109 | -7/Factory | Evolved 2 slots: Propulsion x1, Utility x1 4634 | -7/Factory | Discovered new exit (range 11) 4700 | -7/Factory | Lost 7 parts (2n3u2w) 4757 | -7/Factory | Entered Storage 4786 | -7/Storage | Lost 3 parts (1p1u1w) 4823 | -7/Storage | Build established: Mutant 5695 | -7/Storage | Found Prototype Launcher 5700 | -7/Storage | Identified Rocket Array 6018 | -7/Storage | Core integrity fell below 50% 6038 | -7/Storage | Discovered new exit (range 13) 6090 | -7/Storage | Met a pair of Derelict thieves 6167 | -7/Storage | Entered Factory 6167 | -6/Factory | Evolved 2 slots: Propulsion x1, Utility x1 6438 | -6/Factory | Hacking Suite fried by hacking feedback 6966 | -6/Factory | Discovered new exit (range 12) 6989 | -6/Factory | Entered another Factory area 6989 | -5/Factory | Evolved 2 slots: Power x1, Utility x1 7338 | -5/Factory | Assimilated P-70 Sage with FLK Orb 7342 | -5/Factory | Assimilated P-70 Sage with FLK Orb 7575 | -5/Factory | Spotted B-75 Beast 7590 | -5/Factory | Fabricated A-15 Conveyor? 7739 | -5/Factory | Assimilated B-75 Beast with FLK Orb 7869 | -5/Factory | P-70 Sage assimilated allied Conveyor 6a 7880 | -5/Factory | Discovered new exit (range 13) 7911 | -5/Factory | Destroyed 7 combat bots 7912 | -5/Factory | Lost 3 parts (2p1n) 7933 | -5/Factory | Entered another Factory area 7933 | -4/Factory | Evolved 2 slots: Utility x2 8007 | -4/Factory | Identified exit to DSF 8008 | -4/Factory | Entered DSF 8069 | -4/DSF | Additional patrols routed to DSF 8076 | -4/DSF | Assimilated H-71 Marshal with FLK Orb 8354 | -4/DSF | Sterilization system engaged 8374 | -4/DSF | Ambient heat levels rising (+10) 8377 | -4/DSF | Destroyed 9 combat bots 8389 | -4/DSF | Ambient heat levels rising (+10) 8394 | -4/DSF | Discovered new exit (range 15) 8404 | -4/DSF | Ambient heat levels rising (+10) 8419 | -4/DSF | Ambient heat levels rising (+10) 8434 | -4/DSF | Ambient heat levels rising (+10) 8449 | -4/DSF | Ambient heat levels rising (+10) 8464 | -4/DSF | Ambient heat levels rising (+10) 8466 | -4/DSF | Entered Research 8466 | -3/Research | Evolved 2 slots: Utility x1, Weapon x1 8482 | -3/Research | Found Quantum Capacitor 9434 | -3/Research | Found Fusion Bomb Launcher 9436 | -3/Research | Found Fusion Bomb Launcher 9533 | -3/Research | Assimilated H-71 Marshal with FLK Orb 9535 | -3/Research | Build established: Scavenger-Mutant 9549 | -3/Research | Found Gamma Bomb Array 9650 | -3/Research | Allied Derelicts emerged from ambush trap array 9787 | -3/Research | Lost 3 allies 10022 | -3/Research | System corruption reached 10% 10174 | -3/Research | Build established: Hacker-Mutant 10230 | -3/Research | Discovered new exit (range 9) 10245 | -3/Research | Entered another Research area 10245 | -2/Research | Evolved 2 slots: Power x1, Utility x1 10367 | -2/Research | Identified exit to Access 10636 | -2/Research | Identified exit to DSF 10638 | -2/Research | Entered DSF 10704 | -2/DSF | Additional patrols routed to DSF 10777 | -2/DSF | Lost 5 parts (1p2n2u) 10899 | -2/DSF | Sterilization system engaged 10905 | -2/DSF | Discovered exit to Access (range 14) 10917 | -2/DSF | Lost 5 parts (2p2u1w) 10919 | -2/DSF | Ambient heat levels rising (+10) 10921 | -2/DSF | Found Adv. Powered Armor 10923 | -2/DSF | Found Adv. Powered Armor 10934 | -2/DSF | Ambient heat levels rising (+10) 10949 | -2/DSF | Ambient heat levels rising (+10) 10964 | -2/DSF | Ambient heat levels rising (+10) 10979 | -2/DSF | Ambient heat levels rising (+10) 10994 | -2/DSF | Ambient heat levels rising (+10) 11009 | -2/DSF | Ambient heat levels rising (+10) 11024 | -2/DSF | Ambient heat levels rising (+10) 11039 | -2/DSF | Ambient heat levels rising (+10) 11054 | -2/DSF | Ambient heat levels rising (+10) 11062 | -2/DSF | Core integrity fell below 50% 11069 | -2/DSF | Ambient heat levels rising (+10) 11084 | -2/DSF | Ambient heat levels rising (+10) 11099 | -2/DSF | Ambient heat levels rising (+10) 11114 | -2/DSF | Ambient heat levels rising (+10) 11126 | -2/DSF | Entered Access 11126 | -1/Access | Evolved 2 slots: Utility x2 11195 | -1/Access | Build established: Scavenger-Mutant 11971 | -1/Access | Build established: Tank 12180 | -1/Access | Lost 5 parts (2p2u1w) 12302 | -1/Access | System corruption reached 10% 12356 | -1/Access | Lost 4 parts (2p1u1w) 12478 | -1/Access | Garrison activated, responded to threat 12540 | -1/Access | Spotted B-99 Colossus 12633 | -1/Access | Self-destructed Last Messages --------------- U-05 Engineer lays Concrete. System corrupted: Heat flow error (+281). U-05 Engineer lays Concrete. The unstable cave ceiling collapses. U-05 Engineer lays Concrete. Mic. Antimatter Reactor destroyed. U-05 Engineer lays Concrete. Adv. Heat Sink destroyed. U-05 Engineer lays Concrete. Dropped Biometal Leg. U-05 Engineer lays Concrete. Hvy. Machine Gun destroyed. U-05 Engineer lays Concrete. System corrupted: Heat flow error (+160). U-05 Engineer lays Concrete. U-05 Engineer builds a Wall. ALERT: Rogue bot located, Programmers report to Access Zone 2Q. Slug penetrates Wall. Adv. Heavy Siege Treads destroyed. Map ----- +----------------------------------------------------+ | ###= ##+#################### #?????????# #?# | | ?? #??##?# #???# ## #######???# ### | | ???###?????# #???# #???# | | ???????????# #???# #???##### | | ???????????# ==#???# #???????? | | ???????????# ==#???# #???????? | | ???????????# #???# [ #???????? | | ???????????########???# ######### | | ??????????????????????# = | | ??????????????????????# ######## | | ??????????????????????### ### # | | ????????????????????????# #?# # # | | ????????????????????????# #?##############+### | | ????????????###########?# #?????????# ! | | | ????????????# #?# #?????????# =! = | | ????????????# #?# #?????????# != | | ????????????# " #?# #?????????# |!! | | ????????????# """ #?# #?????????# | | ????????????# """ ### #?????????########## | | ????????????# " + #??????????????????? | | ????????????# ### +??????????????????? | | ????????????# #?# #??????????????????? | | ????????????#######+##### #??????????????????? | | ???????????????# s ## #??????????????????? | | ???????????????# #??????????????????? | | ???????????????# @ #??????????????????? | | ???????????????# #??????????????????? | | ?????????????### #??????????????????? | | ?????????????# # #??????????????????? | | ?????????????# gYY ########??????????????????? | | ????????????## # g ## #???????????????????????? | | ????????????# # # g ## ##??#???????????????????? | | ????????????# # # g ##? ##??????????????????? | | ????????????## ## # # # ????????????????? | | ?????????????##### # # ???????????????? | | ????????????????# # # ???????????????? | | ????????????????# # ####???????????????? | | ????????????????# ##???????????????? | | ????????????????# [=!# ! ##????????????????? | | ????????????????# = = #??????????????? | | ????????????????###=### #### ##????????????????? | | ??????????????????#= ??# # # ???????????????? | | ??????????????????#=#???# # ?????????????????? | | ??????????????????#%#????# ?????????????????? | | ??????????????????#=#????? #????????????????? | | ??????????????????" #??????###?#?????????????????? | | ?????????????????? ????????????????????????????? | | ?????????????????? =????????????????????????????? | | ????????????????? ???????????????????????????? | | ????????????????? ???????????????????????????? | +----------------------------------------------------+ Best States ------------- Heat Dissipation 147 Coolant Potential 100 Energy Generation 83 Energy Capacity 690 Matter Stores 300 Matter Capacity 300 Sight Range 20 Robot Scan Range 14 Terrain Scan Density 10 Jamming Range 16 Cloak Strength 2 Power Amplification 30 Base Temperature (-) 200 Armor Coverage 800 Resistance: TH 20 Resistance: EM 15 Weapon Cycling 15 Evasion (%) 55 Targeting Accuracy 26 Target Analysis 8 Recoil Reduction 4 Particle Charging 25 Offensive Hacking 14 Defensive Hacking 14 Item Schematics ----------------- Adv. Beam Cannon | -7/Factory | Scanalyzed Hrd. Light Armor Plating | -7/Factory | Scanalyzed Mni. Grenade Launcher | -7/Factory | Scanalyzed Deuterium Engine | -7/Factory | Scanalyzed Biometal Medium Treads | -3/Research | Scanalyzed Robot Schematics ------------------ None Fabricated ------------ A-15 Conveyor | x1 | -5/Factory | Preloaded Alien Tech Used ----------------- None Achievements -------------- Dangerous Findings Denied? Let's See Who's Tougher More Power To You Respectable Loadout Rockin' Loadout Tank Challenges ------------ None Game ------ Seed MassHeatWand Manual? 0 Play Time 02:18:37 Cumulative 10.9 hours Start 2024.04.19 @ 12:36:08 End 2024.04.19 @ 15:00:59 Sessions 1 Manual Loads 0 Difficulty Rogue Special Mode None Game No. 10 Rogue 9 Adventurer 1 Explorer 0 Win Type - Total 0 Types 0/0/0/0/0/0/0/0/0 Lore% 21 Gallery% 22 Achievement% 20 Wizard Run 0 Options --------- Layout 1 ASCII 0 Keyboard 0 Movement Numpad Keybinds 0 Fullscreen 1 Font 24/Smallcaps Map View 50x35 Zoom Use 0% Tactical HUD 0 Map Filters NONE Filters NONE Steam 1 RUN: c4401a43-3431-4b54-8672-9f008ebc6249